bitfinex-derivatives/quotes_BTCF0:USTF0_20250309
["timestamp","ask_amount","ask_price","bid_price","bid_amount"]
[1741522326390,0.21915959,84370.0,84369.0,0.1185482]
[1741522326695,0.1778015,84383.0,84382.0,0.1777895]
[1741522326988,0.0592661,84383.0,84382.0,0.2370536]
[1741522327289,0.1185412,84374.0,84373.0,0.09268]
[1741522327483,0.09268,84383.0,84368.0,0.10477746]
[1741522327684,0.09268,84383.0,84370.0,0.2370812]
[1741522327685,0.1778215,84371.0,84370.0,0.2370812]
[1741522327996,0.1185371,84377.0,84376.0,0.118537]
[1741522328292,0.1185371,84377.0,84376.0,0.270637]
[1741522328592,0.2689371,84377.0,84376.0,0.270637]
[1741522328793,0.09268,84383.0,84381.0,0.11853]
[1741522329091,0.1185342,84380.0,84379.0,0.118534]
[1741522329287,0.1185342,84379.0,84378.0,0.09276]
[1741522329591,0.1777936,84384.0,84383.0,0.1185286]
[1741522330886,0.0592637,84384.0,84383.0,0.1185286]
[1741522331394,0.0592637,84384.0,84383.0,0.13030389]
[1741522332092,0.10516325,84386.0,84383.0,0.13030389]
[1741522332288,0.10516325,84386.0,84385.0,0.1185258]
[1741522332490,0.10516325,84386.0,84385.0,0.3082858]
[1741522332679,0.10516325,84386.0,84385.0,0.6327858]
[1741522333098,0.10516325,84386.0,84385.0,0.7249458]
[1741522334689,0.00017785,84391.0,84385.0,0.60642]
[1741522334891,0.00017785,84391.0,84390.0,0.1185187]
[1741522336085,0.1574,84399.0,84387.0,0.0592613]
[1741522336284,0.0592442,84412.0,84399.0,0.1185061]
[1741522336486,0.00895864,84439.0,84399.0,0.1185061]
[1741522336487,0.0592406,84417.0,84399.0,0.2104261]
[1741522336695,0.2185047,84400.0,84399.0,0.3770261]
[1741522337082,0.1,84400.0,84399.0,0.3770261]
[1741522339183,0.00017774,84408.0,84399.0,0.25852]
[1741522339391,0.00017774,84408.0,84407.0,0.1184949]
[1741522339588,0.00017774,84408.0,84407.0,0.4000549]
[1741522340394,0.11867124,84408.0,84407.0,0.4000549]
[1741522341188,0.11867124,84408.0,84407.0,0.28156]
[1741522341393,0.27657124,84408.0,84407.0,0.4000549]
[1741522342702,0.15807774,84408.0,84407.0,0.4000549]
[1741522342893,0.00017774,84408.0,84407.0,0.4000549]
[1741522343092,0.11867124,84408.0,84407.0,0.4000549]
[1741522343599,0.11867124,84408.0,84407.0,0.3996949]
[1741522343992,0.00017774,84408.0,84407.0,0.3996949]
[1741522344701,0.00017774,84408.0,84407.0,0.5549949]
[1741522345686,0.153,84414.0,84407.0,0.4365]
[1741522345891,0.1579,84422.0,84421.0,0.1184752]
[1741522346798,0.10516325,84428.0,84427.0,0.1184668]
[1741522347001,0.11601976,84938.0,84429.0,0.118464]
[1741522347002,0.00011252,84430.0,84429.0,0.118464]
[1741522347300,0.315,84433.0,84432.0,0.1184598]
[1741522347492,0.4334584,84433.0,84432.0,0.1184598]
[1741522347695,0.1184654,84428.0,84427.0,0.399264]
[1741522347895,0.1184654,84428.0,84427.0,0.41088515]
[1741522348696,0.1184654,84428.0,84427.0,0.30129386]
[1741522348901,0.1184654,84428.0,84427.0,0.19855271]
[1741522349099,0.2094254,84428.0,84427.0,0.18968]
[1741522351198,0.2094254,84428.0,84427.0,0.3081468]
[1741522351393,0.2094254,84428.0,84427.0,0.18968]
[1741522353797,0.10516325,84442.0,84427.0,0.18968]
[1741522353996,0.10516325,84442.0,84428.0,0.1532]
[1741522354191,0.1184654,84428.0,84427.0,0.18968]
[1741522354802,0.00108001,84458.0,84427.0,0.51398]
[1741522355109,0.2798192,84471.0,84470.0,0.1184065]
[1741522355296,0.3974243,84471.0,84470.0,0.2090065]
[1741522355491,0.2790192,84471.0,84470.0,0.1184065]
[1741522355700,0.2790192,84471.0,84470.0,0.2089665]
[1741522356098,0.43016199,84471.0,84470.0,0.1184065]
[1741522356403,0.31175689,84471.0,84470.0,0.1184065]
[1741522356598,0.31175689,84471.0,84470.0,0.2785065]
[1741522358001,0.31175689,84471.0,84470.0,0.29298763]
[1741522358303,0.31175689,84471.0,84470.0,0.45768763]
[1741522358501,0.27026625,84471.0,84470.0,0.46669228]
[1741522359501,0.26901625,84471.0,84470.0,0.46669228]
[1741522359695,0.22752561,84471.0,84470.0,0.46669228]
[1741522359904,0.38125263,84485.0,84479.0,0.1183939]
[1741522360199,0.218688,84480.0,84479.0,0.2089939]
[1741522360610,0.17719736,84480.0,84479.0,0.5228939]
[1741522360798,0.13570672,84480.0,84479.0,0.5228939]
[1741522361696,0.0591853,84496.0,84495.0,0.1183715]
[1741522361902,0.0591853,84496.0,84495.0,0.2087715]
[1741522362507,0.166,84498.0,84495.0,0.2087715]
[1741522362807,0.2843672,84498.0,84495.0,0.0591852]
[1741522363006,0.1183715,84495.0,84494.0,0.09024]
[1741522363600,0.1183757,84492.0,84491.0,0.1896]
[1741522366209,0.1183757,84492.0,84487.0,0.00017763]
[1741522366210,0.08984,84492.0,84487.0,0.00017763]
[1741522366407,0.1183813,84488.0,84487.0,0.00017763]
[1741522368108,0.2080213,84488.0,84487.0,0.00017763]
[1741522368606,0.2758795,84491.0,84490.0,0.1183785]
[1741522368810,0.1575,84491.0,84490.0,0.1183785]
[1741522369010,0.2758771,84491.0,84490.0,0.1183785]
[1741522369405,0.0591867,84494.0,84490.0,0.1183785]
[1741522369615,0.1562,84498.0,84491.0,0.2270879]
[1741522369913,0.1562,84498.0,84497.0,0.1183687]
[1741522370115,0.2745672,84498.0,84497.0,0.1183687]
[1741522370309,0.1,84500.0,84499.0,0.1183658]
[1741522370510,0.2183644,84500.0,84499.0,0.1183658]
[1741522371009,0.2183644,84500.0,84499.0,0.2708658]
[1741522371213,0.1,84500.0,84499.0,0.2708658]
[1741522371514,0.1,84500.0,84498.0,0.08964]
[1741522371808,0.1,84500.0,84497.0,0.18952]
[1741522371809,0.1183672,84498.0,84497.0,0.18952]
[1741522372402,0.1183785,84490.0,84489.0,0.08948]
[1741522373015,0.1183799,84489.0,84488.0,0.1183799]
[1741522373210,0.2781799,84489.0,84488.0,0.1183799]
[1741522373514,0.1183813,84488.0,84487.0,0.00017763]
[1741522374615,0.1183813,84488.0,84487.0,0.11856033]
[1741522375907,0.2896813,84488.0,84487.0,0.11856033]
[1741522376307,0.2896813,84488.0,84487.0,0.00017763]
[1741522377005,0.18639195,84488.0,84480.0,0.18952]
[1741522377201,0.1184023,84473.0,84453.0,0.35402815]
[1741522377409,0.2075223,84473.0,84465.0,0.21258879]
[1741522378010,0.1184121,84466.0,84465.0,0.21258879]
[1741522378309,0.2075721,84466.0,84465.0,0.21258879]
[1741522379204,0.2075721,84466.0,84461.0,0.2831569]
[1741522379205,0.1184177,84462.0,84461.0,0.2831569]
[1741522379808,0.2684177,84462.0,84461.0,0.2831569]
[1741522380109,0.1184177,84462.0,84461.0,0.2831569]
[1741522380308,0.2073777,84462.0,84461.0,0.401576]
[1741522380807,0.2073777,84462.0,84461.0,0.2831569]
[1741522382311,0.2073777,84462.0,84461.0,0.00017752]
[1741522383007,0.1625,84462.0,84461.0,0.11859662]
[1741522383207,0.1776141,84471.0,84470.0,0.0592019]
[1741522383411,0.2368183,84471.0,84470.0,0.0592019]
[1741522384017,0.1184069,84471.0,84470.0,0.0592019]
[1741522384317,0.1776088,84473.0,84472.0,0.1183995]
[1741522384915,0.00017689,84477.0,84476.0,0.1183981]
[1741522386118,0.11857359,84477.0,84476.0,0.1183981]
[1741522386413,0.1184009,84474.0,84473.0,0.4263185]
[1741522387013,0.1184009,84474.0,84473.0,0.18952]
[1741522387214,0.1184009,84474.0,84473.0,0.3079223]
[1741522387610,0.1184009,84474.0,84473.0,0.18952]
[1741522387812,0.1184009,84474.0,84446.0,0.06099587]
[1741522387813,0.1184177,84462.0,84458.0,0.18952]
[1741522388411,0.2071777,84462.0,84458.0,0.18952]
[1741522388610,0.5341777,84462.0,84458.0,0.18952]
[1741522389511,0.5341777,84462.0,84461.0,2e-08]
[1741522389719,0.6841777,84462.0,84461.0,2e-08]
[1741522391917,0.5341777,84462.0,84461.0,2e-08]
[1741522395010,0.5334977,84462.0,84461.0,2e-08]
[1741522396820,0.1184177,84462.0,84461.0,0.11841912]
[1741522397025,0.2063377,84462.0,84461.0,0.11841912]
[1741522397515,0.0592047,84468.0,84467.0,0.1184079]
[1741522397716,0.1776172,84468.0,84467.0,0.1184079]
[1741522398029,0.1776172,84468.0,84461.0,0.10000002]
[1741522398030,0.1184163,84463.0,84462.0,0.1776237]
[1741522398225,0.1184163,84463.0,84462.0,0.3357237]
[1741522398920,0.059204,84469.0,84465.0,0.0592061]
[1741522399122,0.1776013,84476.0,84475.0,0.11829679]
[1741522400619,0.1184079,84469.0,84468.0,0.206167]
[1741522400813,0.1184079,84469.0,84468.0,0.2061693]
[1741522401418,0.1184079,84469.0,84468.0,0.08776]
[1741522401726,0.1184079,84469.0,84459.0,0.1184215]
[1741522401727,0.1184163,84463.0,84460.0,0.2058991]
[1741522401926,0.1184163,84463.0,84462.0,0.2823177]
[1741522402224,0.1184163,84463.0,84462.0,0.1639]
[1741522402413,0.0592073,84465.0,84459.0,0.08744]
[1741522402619,0.1184177,84462.0,84454.0,0.2058282]
[1741522402819,0.1184177,84462.0,84454.0,0.0874]
[1741522403426,0.1184177,84462.0,84457.0,0.1184241]
[1741522403623,0.1184177,84462.0,84454.0,0.0874]
[1741522403819,0.1184177,84462.0,84454.0,0.10224403]
[1741522404020,0.1184177,84462.0,84461.0,0.40797912]
[1741522405928,0.0592052,84468.0,84467.0,0.1184079]
[1741522406129,0.1776145,84468.0,84467.0,0.1184079]
[1741522406331,0.1776145,84468.0,84467.0,0.2855079]
[1741522408526,0.00017689,84477.0,84476.0,0.1183981]
[1741522409220,0.11857359,84477.0,84476.0,0.1642]
[1741522409820,0.11857359,84477.0,84476.0,0.2825981]
[1741522410335,0.00017689,84477.0,84476.0,0.2825981]
[1741522411524,0.00017689,84477.0,84476.0,0.29138667]
[1741522414034,0.1183704,84496.0,84476.0,0.32298857]
[1741522414232,0.1183704,84496.0,84495.0,0.1183715]
[1741522414428,0.1183704,84496.0,84495.0,0.2048915]
[1741522415031,0.4427704,84496.0,84495.0,0.24602]
[1741522415330,0.1183715,84495.0,84494.0,0.18952]
[1741522415739,0.4427715,84495.0,84494.0,0.18952]
[1741522416230,0.1183715,84495.0,84494.0,0.3078929]
[1741522416633,0.1591823,84500.0,84499.0,0.1183658]
[1741522416634,0.1,84500.0,84499.0,0.1183658]
[1741522416827,0.2183644,84500.0,84499.0,0.1183658]
[1741522418239,0.1183672,84498.0,84497.0,0.1682]
[1741522418437,0.1183672,84498.0,84497.0,0.3295]
[1741522418831,0.4405672,84498.0,84497.0,0.4478687]
[1741522419129,0.4405672,84498.0,84497.0,0.3295]
[1741522419637,0.4405672,84498.0,84497.0,0.4478687]
[1741522420531,0.1183715,84495.0,84494.0,0.18952]
[1741522421135,0.1183715,84495.0,84488.0,0.332]
[1741522421136,0.1183813,84488.0,84487.0,0.00017752]
[1741522421338,0.2050213,84488.0,84487.0,0.00017752]
[1741522421729,0.2050213,84488.0,84487.0,2e-08]
[1741522422032,0.1184191,84461.0,84460.0,0.47245938]
[1741522422240,0.1184191,84461.0,84460.0,0.28297938]
[1741522423035,0.4599191,84461.0,84460.0,0.28297938]
[1741522423730,0.4599191,84461.0,84460.0,0.22934438]
[1741522424229,0.4599191,84461.0,84460.0,0.01487078]
[1741522424434,0.4599191,84461.0,84452.0,0.00017752]
[1741522424435,0.1184205,84460.0,84459.0,5e-08]
[1741522424939,0.0592201,84446.0,84430.0,0.10109422]
[1741522425139,0.1776819,84440.0,84439.0,0.1184433]
[1741522425733,0.0592262,84440.0,84439.0,0.1184433]
[1741522426643,0.4455415,84445.0,84444.0,0.1184429]
[1741522426946,0.2874415,84445.0,84444.0,0.1184429]
[1741522427241,0.1184415,84445.0,84444.0,0.1184429]
[1741522427543,0.00017763,84448.0,84447.0,0.1184387]
[1741522427739,0.11861493,84448.0,84447.0,0.1616]
[1741522428441,0.11861493,84448.0,84447.0,0.2800387]
[1741522429245,0.1184472,84441.0,84434.0,0.0866]
[1741522429542,0.1184472,84441.0,84440.0,0.3079686]
[1741522430344,0.1184472,84441.0,84440.0,0.51072]
[1741522430744,0.1184472,84441.0,84440.0,0.18952]
[1741522431139,0.1184472,84441.0,84431.0,0.00017763]
[1741522431140,0.1184598,84432.0,84431.0,0.00017763]
[1741522431648,0.1637,84440.0,84432.0,0.0592293]
[1741522431834,0.283145,84447.0,84446.0,0.1184401]
[1741522432039,0.3284,84447.0,84446.0,0.1184401]
[1741522432241,0.11861633,84448.0,84447.0,0.1184387]
[1741522432447,0.11861633,84448.0,84447.0,0.1583]
[1741522432647,0.1184598,84432.0,84431.0,0.11863863]
[1741522432953,0.1184598,84432.0,84431.0,0.13526962]
[1741522433247,0.1184598,84432.0,84431.0,0.01680862]
[1741522433442,0.1184598,84432.0,84431.0,0.01722806]
[1741522433642,0.1184598,84432.0,84431.0,0.13568926]
[1741522433643,0.4467598,84432.0,84431.0,0.13568926]
[1741522434042,0.3283,84432.0,84431.0,0.13568956]
[1741522434250,0.1184584,84433.0,84432.0,0.1184598]
[1741522434436,0.3283,84439.0,84432.0,0.35065073]
[1741522434640,0.3283,84439.0,84438.0,0.1184514]
[1741522434641,0.4467514,84439.0,84438.0,0.1184514]
[1741522434841,0.1184438,84446.0,84445.0,0.1184387]
[1741522435045,0.3294,84447.0,84446.0,0.1184401]
[1741522435242,0.26565062,84468.0,84462.0,0.1184177]
[1741522435557,0.3294,84467.0,84462.0,0.1184177]
[1741522435850,0.3294,84467.0,84462.0,0.13529275]
[1741522436040,0.1658,84467.0,84462.0,0.13529275]
[1741522436350,0.17497062,84468.0,84462.0,0.22613275]
[1741522437349,0.00017763,84471.0,84462.0,0.10771505]
[1741522437546,0.11858323,84471.0,84470.0,0.1184065]
[1741522437745,0.11858323,84471.0,84470.0,0.22596155]
[1741522438342,0.11858323,84471.0,84470.0,0.56496155]
[1741522439747,0.11858323,84471.0,84470.0,0.5650781]
[1741522440051,0.11858273,84471.0,84470.0,0.5650781]
[1741522441154,0.00017763,84471.0,84470.0,0.5650781]
[1741522441447,0.11858273,84471.0,84470.0,0.56510303]
[1741522441650,0.00017763,84471.0,84470.0,0.56510303]
[1741522441947,0.11858273,84471.0,84470.0,0.56510303]
[1741522442345,0.00017763,84471.0,84470.0,0.56510303]
[1741522442547,0.11858273,84471.0,84470.0,0.56510303]
[1741522444952,0.08997763,84471.0,84455.0,0.2168]
[1741522445153,0.1184233,84458.0,84457.0,0.1776349]
[1741522445353,0.1184233,84458.0,84457.0,0.53363419]
[1741522445951,0.1184233,84458.0,84457.0,0.5477798]
[1741522446155,0.1184233,84458.0,84457.0,1.2693798]
[1741522447057,0.0592093,84462.0,84457.0,1.0917449]
[1741522447248,0.1184203,84461.0,84460.0,0.1184191]
[1741522447560,0.0592064,84466.0,84465.0,0.1184135]
[1741522447753,0.1184102,84468.0,84467.0,0.1184093]
[1741522447943,0.1184102,84468.0,84467.0,0.13530859]
[1741522448347,0.2890102,84468.0,84467.0,0.13530859]
[1741522448549,0.4549102,84468.0,84467.0,0.01689929]
[1741522448749,0.5733223,84468.0,84467.0,0.1184107]
[1741522449057,0.4549102,84468.0,84467.0,0.13527573]
[1741522449252,0.4549102,84468.0,84467.0,0.01686503]
[1741522449457,0.4549102,84468.0,84467.0,0.13527573]
[1741522450450,0.4549102,84468.0,84467.0,0.01686503]
[1741522450956,0.4549102,84468.0,84465.0,0.4792135]
[1741522450957,0.1184121,84466.0,84465.0,0.4792135]
[1741522451153,0.05938033,84471.0,84465.0,0.4792135]
[1741522451154,0.00017763,84471.0,84470.0,0.1184065]
[1741522451356,0.11858273,84471.0,84470.0,0.49614815]
[1741522454058,0.28748273,84471.0,84470.0,0.49614815]
[1741522454548,0.28748273,84471.0,84470.0,0.88436796]
[1741522454952,0.28748273,84471.0,84470.0,0.76596146]
[1741522455356,0.28748273,84471.0,84470.0,0.85694815]
[1741522455556,0.28748273,84471.0,84470.0,0.88437143]
[1741522455960,0.28748273,84471.0,84470.0,0.85694815]
[1741522456154,0.28748273,84471.0,84470.0,0.8844466]
[1741522457462,0.28748273,84471.0,84470.0,0.85694815]
[1741522458651,0.28748273,84471.0,84470.0,0.13534815]
[1741522458858,0.28748273,84471.0,84470.0,0.49614815]
[1741522459172,0.00060001,84498.0,84470.0,0.46622165]
[1741522459359,0.25753552,84492.0,84491.0,0.4791771]
[1741522459758,0.13915982,84492.0,84491.0,0.4791771]
[1741522459958,0.13915982,84492.0,84491.0,0.49625527]
[1741522460765,0.14217097,84497.0,84496.0,0.1183701]
[1741522460967,0.14217097,84497.0,84496.0,0.49624827]
[1741522461663,0.10017763,84500.0,84499.0,0.1183658]
[1741522461862,0.10017763,84500.0,84499.0,0.23815515]
[1741522465668,0.05457763,84500.0,84499.0,0.23815515]
[1741522465857,0.23289119,84510.0,84509.0,0.1183518]
[1741522466168,0.161,84533.0,84519.0,0.0591687]
[1741522466364,0.161,84533.0,84532.0,0.4791196]
[1741522466557,0.161,84533.0,84532.0,0.6685996]
[1741522467059,0.0591563,84537.0,84536.0,0.1774634]
[1741522467270,0.2205563,84537.0,84536.0,0.5382634]
[1741522467671,0.3980321,84537.0,84536.0,0.5382634]
[1741522467869,0.3980321,84537.0,84536.0,0.3608]
[1741522468167,0.2205563,84537.0,84532.0,0.00072]
[1741522468372,0.2205563,84537.0,84518.0,0.18948]
[1741522468373,0.118328,84526.0,84525.0,0.3608]
[1741522468569,0.206088,84526.0,84525.0,0.3608]
[1741522468964,0.1183294,84525.0,84518.0,0.18948]
[1741522469171,0.4491294,84525.0,84518.0,0.18948]
[1741522469369,0.4491294,84525.0,84524.0,0.36097752]
[1741522469562,0.1183799,84489.0,84488.0,0.3608]
[1741522470174,0.1183799,84489.0,84488.0,0.4791813]
[1741522470480,0.1183799,84489.0,84488.0,0.3608]
[1741522470662,0.1183799,84489.0,84488.0,0.71482815]
[1741522471061,0.1183799,84489.0,84488.0,0.83320945]
[1741522471266,0.1183799,84489.0,84488.0,0.71482815]
[1741522471877,0.1183799,84489.0,84488.0,0.83320945]
[1741522472067,0.1183799,84489.0,84488.0,0.71482815]
[1741522472267,0.1183799,84489.0,84488.0,0.35402815]
[1741522472674,0.2930799,84489.0,84488.0,0.35402815]
[1741522472875,0.6538799,84489.0,84488.0,0.35402815]
[1741522473081,0.8146799,84489.0,84488.0,0.35402815]
[1741522474875,0.1183911,84481.0,84475.0,0.1183989]
[1741522475079,0.2057511,84481.0,84473.0,0.236803]
[1741522475379,0.1183911,84481.0,84471.0,0.53758]
[1741522475576,0.2056711,84481.0,84474.0,0.1184007]
[1741522476078,0.3717711,84481.0,84476.0,0.1183973]
[1741522476275,0.3717711,84481.0,84471.0,0.53758]
[1741522476479,0.3717711,84481.0,84480.0,0.00017752]
[1741522476683,0.8825711,84481.0,84480.0,2e-08]
[1741522476977,0.7325711,84481.0,84480.0,2e-08]
[1741522477177,1.1016711,84481.0,84480.0,2e-08]
[1741522477582,0.9516711,84481.0,84480.0,2e-08]
[1741522477875,1.1016711,84481.0,84480.0,2e-08]
[1741522479681,0.98328,84481.0,84480.0,2e-08]
[1741522479882,0.98328,84481.0,84439.0,0.1597]
[1741522480076,0.1184387,84447.0,84446.0,0.1597]
[1741522480383,0.2053587,84447.0,84446.0,0.3359]
[1741522480586,0.2053587,84447.0,84446.0,0.1597]
[1741522481285,0.1184387,84447.0,84446.0,0.2781401]
[1741522481476,0.1184387,84447.0,84446.0,0.29476302]
[1741522481673,0.00060001,84468.0,84467.0,0.1184107]
[1741522481984,0.0591998,84475.0,84474.0,0.1183953]
[1741522483087,0.0591998,84475.0,84474.0,0.4791953]
[1741522483692,0.1775984,84477.0,84476.0,0.1183981]
[1741522484187,0.3490984,84477.0,84476.0,0.1183981]
[1741522484887,0.1183981,84476.0,84475.0,0.171]
[1741522485183,0.1183981,84476.0,84475.0,0.4605995]
[1741522485382,0.1715,84477.0,84475.0,0.4605995]
[1741522485583,0.1715,84477.0,84476.0,0.1183981]
[1741522485987,0.1715,84477.0,84476.0,0.4605981]
[1741522486186,0.3781767,84477.0,84476.0,0.4605981]
[1741522486982,0.3781767,84477.0,84476.0,0.3422]
[1741522487589,0.3781767,84477.0,84476.0,0.171]
[1741522487788,0.3781767,84477.0,84466.0,0.00017752]
[1741522487789,0.42038,84477.0,84466.0,0.00017752]
[1741522487990,0.1184107,84467.0,84466.0,0.00017752]
[1741522488290,0.1184472,84441.0,84439.0,0.3608]
[1741522488488,0.0882,84442.0,84440.0,0.12022503]
[1741522488694,0.0592223,84443.0,84442.0,0.1184457]
[1741522488989,0.0592223,84443.0,84441.0,0.35402815]
[1741522488990,0.1184457,84442.0,84441.0,0.35402815]
[1741522489196,0.2862457,84442.0,84441.0,0.35402815]
[1741522489688,0.4468457,84442.0,84441.0,0.35402815]
[1741522490288,0.3744457,84442.0,84441.0,0.63567535]
[1741522490588,0.0592215,84444.0,84441.0,0.51722815]
[1741522490790,0.00017764,84450.0,84447.0,0.1184387]
[1741522490791,0.1722,84448.0,84447.0,0.1184387]
[1741522490990,0.08816,84448.0,84447.0,0.4792387]
[1741522491192,0.00017764,84450.0,84449.0,0.1184359]
[1741522491692,0.11861214,84450.0,84449.0,0.4555359]
[1741522492092,0.00017764,84450.0,84449.0,0.4555359]
[1741522492396,0.11861214,84450.0,84449.0,0.4555359]
[1741522492792,0.00017764,84450.0,84449.0,0.4555359]
[1741522494499,0.1664,84475.0,84449.0,0.5749]
[1741522494799,0.4791967,84477.0,84476.0,0.1183981]
[1741522495192,0.3608,84477.0,84475.0,0.351]
[1741522495388,0.1183981,84476.0,84475.0,0.351]
[1741522496501,0.1183981,84476.0,84475.0,0.176]
[1741522496696,0.4562981,84476.0,84475.0,0.176]
[1741522496890,0.1184079,84469.0,84468.0,0.00017764]
[1741522497089,0.1184079,84469.0,84468.0,0.16747764]
[1741522497090,0.2062479,84469.0,84468.0,0.16747764]
[1741522497793,0.5537479,84469.0,84468.0,0.16747764]
[1741522499296,0.3739479,84469.0,84468.0,0.16747764]
[1741522500592,0.3739479,84469.0,84468.0,0.28588694]
[1741522501295,0.3739479,84469.0,84468.0,0.45078694]
[1741522501894,0.3739479,84469.0,84468.0,0.33237764]
[1741522504098,0.2062479,84469.0,84468.0,0.33237764]
[1741522504305,0.10480564,84483.0,84476.0,0.1183981]
[1741522504800,0.10480564,84483.0,84482.0,0.1183897]
[1741522504998,0.10480564,84483.0,84482.0,0.4791897]
[1741522505592,0.22319394,84483.0,84482.0,0.6525897]
[1741522505996,0.10480564,84483.0,84482.0,0.7395897]
[1741522506194,0.2926608,84492.0,84483.0,0.1183883]
[1741522506391,0.10531311,84496.0,84491.0,0.1183771]
[1741522506600,0.10531311,84496.0,84495.0,0.4791715]
[1741522506601,0.22368321,84496.0,84495.0,0.4791715]
[1741522507905,0.10531311,84496.0,84495.0,0.4791715]
[1741522508696,0.22368321,84496.0,84495.0,0.4791715]
[1741522509612,3.908e-05,84504.0,84503.0,0.1183602]
[1741522509902,3.908e-05,84504.0,84503.0,0.5659202]
[1741522510103,0.11839788,84504.0,84503.0,0.5659202]
[1741522510502,3.908e-05,84504.0,84503.0,0.5659202]
[1741522510895,3.908e-05,84504.0,84503.0,0.4791602]
[1741522511092,3.908e-05,84504.0,84503.0,0.5658402]
[1741522511298,0.0591767,84508.0,84507.0,0.1183546]
[1741522511998,0.00267,84511.0,84506.0,0.0866]
[1741522512201,0.121019,84511.0,84510.0,0.4791504]
[1741522512400,0.00267,84511.0,84510.0,0.4791504]
[1741522512600,0.00267,84511.0,84510.0,0.8102504]
[1741522512802,0.121019,84511.0,84510.0,0.8102504]
[1741522516210,0.15267,84511.0,84493.0,0.3608]
[1741522516403,0.1183729,84494.0,84493.0,0.3608]
[1741522516608,0.2048929,84494.0,84493.0,0.3608]
[1741522517207,0.5362929,84494.0,84493.0,0.3608]
[1741522517607,0.5362929,84494.0,84493.0,0.4791743]
[1741522518208,0.4497729,84494.0,84493.0,0.4791743]
[1741522518408,0.4497729,84494.0,84493.0,0.6528743]
[1741522519700,0.4497729,84494.0,84493.0,0.3608]
[1741522523807,0.5356529,84494.0,84493.0,0.3608]
[1741522524613,0.5356529,84494.0,84488.0,0.1652]
[1741522524614,0.1183799,84489.0,84488.0,0.1652]
[1741522524813,0.1183813,84488.0,84487.0,0.00017753]
[1741522525009,0.3717413,84488.0,84487.0,0.00017753]
[1741522525213,0.3717413,84488.0,84487.0,0.11856023]
[1741522525908,0.2041413,84488.0,84487.0,0.11856023]
[1741522526612,0.3815413,84488.0,84487.0,0.29166023]
[1741522526817,0.2957813,84488.0,84487.0,0.29166023]
[1741522527023,0.2957813,84488.0,84487.0,0.00017753]
[1741522527210,0.4633813,84488.0,84487.0,0.00017753]
[1741522527512,0.5489013,84488.0,84487.0,0.00017753]
[1741522527918,0.5489013,84488.0,84487.0,0.11856023]
[1741522528119,0.5489013,84488.0,84487.0,0.00017753]
[1741522529519,0.5489013,84488.0,84487.0,0.46276023]
[1741522529719,0.5489013,84488.0,84487.0,0.34437753]
[1741522529915,0.43052,84488.0,84487.0,0.46276023]
[1741522530122,0.0591823,84500.0,84496.0,0.1183701]
[1741522530317,0.09132,84497.0,84496.0,0.1183701]
[1741522530521,0.2096887,84497.0,84496.0,0.1183701]
[1741522530713,0.1183715,84495.0,84494.0,0.3442]
[1741522530914,0.1183715,84495.0,84494.0,0.36085964]
[1741522531320,0.1183715,84495.0,84494.0,0.47923254]
[1741522531321,0.2870715,84495.0,84494.0,0.47923254]
[1741522531725,0.2870715,84495.0,84494.0,0.18355964]
[1741522532420,0.2870715,84495.0,84494.0,0.01665964]
[1741522532814,0.4558715,84495.0,84494.0,0.01665964]
[1741522533209,0.4558715,84495.0,84494.0,0.13503254]
[1741522533415,0.4558715,84495.0,84494.0,0.47842267]
[1741522535312,0.4558715,84495.0,84494.0,0.4617729]
[1741522535516,0.4578715,84495.0,84494.0,0.4794446]
[1741522536621,0.4578715,84495.0,84494.0,0.47943897]
[1741522537016,0.4578715,84495.0,84494.0,0.4627729]
[1741522537528,0.2890715,84495.0,84494.0,0.4627729]
[1741522538024,0.002,84495.0,84494.0,0.47938489]
[1741522538325,1e-07,84495.0,84494.0,0.47938489]
[1741522538524,0.20474283,84514.0,84510.0,0.1183504]
[1741522538725,0.20474283,84514.0,84510.0,0.14852388]
[1741522538726,0.32308773,84514.0,84510.0,0.14852388]
[1741522538920,0.121019,84511.0,84510.0,0.14852388]
[1741522539120,0.00267,84511.0,84510.0,0.66161189]
[1741522539323,0.00267,84511.0,84510.0,1.02241189]
[1741522539916,0.07575,84513.0,84512.0,0.1183476]
[1741522542030,0.118349,84511.0,84510.0,0.72828149]
[1741522542234,0.118349,84511.0,84510.0,0.30861189]
[1741522542527,0.118349,84511.0,84510.0,0.66941189]
[1741522542716,0.118349,84511.0,84510.0,0.55106149]
[1741522543114,0.118349,84511.0,84510.0,0.1767]
[1741522543115,0.294749,84511.0,84510.0,0.1767]
[1741522543315,0.294749,84511.0,84510.0,0.81909453]
[1741522543925,0.294749,84511.0,84510.0,0.28159453]
[1741522544129,0.293749,84511.0,84510.0,0.28159453]
[1741522544525,0.654549,84511.0,84510.0,0.28159453]
[1741522544728,0.654549,84511.0,84510.0,0.20696163]
[1741522544929,0.873649,84511.0,84510.0,0.08019373]
[1741522545230,0.1183574,84505.0,84504.0,0.00017753]
[1741522545535,0.5627974,84505.0,84504.0,0.00017753]
[1741522545927,0.7408974,84505.0,84504.0,0.00017753]
[1741522546126,0.9134974,84505.0,84504.0,0.00017753]
[1741522547534,1.05346023,84505.0,84504.0,0.00017753]
[1741522548038,1.41326023,84505.0,84504.0,0.00017753]
[1741522548743,1.41726023,84505.0,84504.0,0.00117753]
[1741522549039,1.33262023,84505.0,84504.0,0.00117753]
[1741522549246,0.69530023,84505.0,84504.0,0.00117753]
[1741522549748,0.69530023,84505.0,84504.0,0.11953633]
[1741522549749,0.52270023,84505.0,84504.0,0.11953633]
[1741522549935,0.14396283,84505.0,84504.0,0.48033633]
[1741522550243,0.14396283,84505.0,84504.0,1.00393633]
[1741522550640,0.004,84505.0,84504.0,1.01712659]
[1741522550842,0.20583283,84506.0,84505.0,0.1183574]
[1741522551241,0.17567077,84511.0,84510.0,0.1183504]
[1741522551436,0.17567077,84511.0,84510.0,0.2027504]
[1741522551633,0.29401977,84511.0,84510.0,0.2027504]
[1741522551839,0.29401977,84511.0,84510.0,0.5493504]
[1741522552441,0.17567077,84511.0,84510.0,0.5493504]
[1741522553145,0.17567077,84511.0,84510.0,0.6993504]
[1741522553738,0.17567077,84511.0,84510.0,0.5493504]
[1741522554641,0.17967077,84511.0,84510.0,0.5503504]
[1741522554846,0.2297584,84534.0,84510.0,0.432]
[1741522555044,0.29398137,84543.0,84532.0,0.0591597]
[1741522555249,0.2366248,84541.0,84540.0,0.118307]
[1741522556045,0.4072248,84541.0,84540.0,0.468407]
[1741522556238,0.4072248,84541.0,84540.0,0.3501]
[1741522556443,0.5755248,84541.0,84540.0,0.3501]
[1741522557743,0.1183182,84533.0,84532.0,0.1193187]
[1741522557947,0.1706,84541.0,84532.0,0.001]
[1741522558251,0.29933497,84543.0,84542.0,0.1146256]
[1741522558836,0.1236642,84543.0,84542.0,0.1146256]
[1741522559043,0.1196642,84543.0,84542.0,0.4504256]